bitfinex-derivatives/quotes_SOLF0:USTF0_20260213
["timestamp","ask_amount","ask_price","bid_price","bid_amount"]
[1771004082782,3.97112946,84.539,84.491,4.05660078]
[1771004083684,10.655,84.531,84.478,4.05660078]
[1771004085783,10.655,84.531,84.491,10.6599]
[1771004087688,3.97112946,84.53,84.478,4.05660078]
[1771004088074,3.97112946,84.53,84.451,4.05660078]
[1771004088489,14.62782946,84.517,84.451,4.05660078]
[1771004089892,14.62782946,84.517,84.476,10.6618]
[1771004090888,14.62782946,84.517,84.469,10.6627]
[1771004091683,14.62782946,84.517,84.467,4.05660078]
[1771004091684,3.97112946,84.517,84.467,4.05660078]
[1771004092884,3.97112946,84.513,84.474,10.662]
[1771004093083,3.97112946,84.499,84.44,10.88026475]
[1771004093284,3.97112946,84.475,84.43,10.6676]
[1771004093689,10.942321,84.53,84.43,10.6676]
[1771004093690,3.97112946,84.502,84.43,4.05660078]
[1771004094183,3.97112946,84.518,84.457,4.05660078]
[1771004094390,3.97112946,84.532,84.457,4.05660078]
[1771004095087,3.22869239,84.53,84.482,10.661]
[1771004095290,14.62602946,84.532,84.482,14.71760078]
[1771004095688,3.97112946,84.519,84.466,4.05660078]
[1771004096193,3.97112946,84.519,84.47,3.22869239]
[1771004096890,14.62762946,84.519,84.47,13.89129239]
[1771004097492,14.62762946,84.519,84.477,10.6616]
[1771004097791,3.97112946,84.519,84.48,3.22869239]
[1771004099290,3.97112946,84.519,84.477,10.6616]
[1771004099291,3.97112946,84.55,84.5,3.22869239]
[1771004099488,3.97112946,84.549,84.496,4.05660078]
[1771004099793,3.97112946,84.539,84.49,3.22869239]
[1771004099979,3.97112946,84.539,84.482,4.05660078]
[1771004100388,3.97112946,84.539,84.49,3.22869239]
[1771004100585,3.97112946,84.539,84.491,4.05660078]
[1771004101192,3.9617921,84.567,84.511,3.72143122]
[1771004101387,3.9617921,84.567,84.52,3.22869239]
[1771004102787,3.9617921,84.567,84.517,10.6567]
[1771004102987,3.9617921,84.564,84.511,3.72143122]
[1771004103183,3.9617921,84.549,84.493,3.72143122]
[1771004103384,3.9617921,84.549,84.5,3.22869239]
[1771004103995,10.6528,84.548,84.5,13.88739239]
[1771004104296,3.9617921,84.548,84.501,3.72143122]
[1771004105691,3.9617921,84.564,84.52,3.22631515]
[1771004106096,3.9617921,84.564,84.52,6.94774637]
[1771004106494,3.9617921,84.579,84.53,3.22631515]
[1771004106691,3.9617921,84.579,84.53,6.94774637]
[1771004107792,3.9617921,84.579,84.531,10.6548]
[1771004107988,3.9617921,84.579,84.53,3.22631515]
[1771004108292,3.9617921,84.56,84.515,3.72143122]
[1771004108888,3.9617921,84.56,84.52,3.22631515]
[1771004109995,3.9617921,84.559,84.51,3.22631515]
[1771004110796,3.9617921,84.558,84.506,10.6581]
[1771004110998,3.9617921,84.558,84.501,3.72143122]
[1771004111297,3.9617921,84.558,84.51,3.22631515]
[1771004111489,3.9617921,84.558,84.514,10.657]
[1771004111689,3.9617921,84.572,84.53,3.22631515]
[1771004112901,3.9617921,84.572,84.527,10.6554]
[1771004113103,3.22631515,84.57,84.527,10.6554]
[1771004113397,3.9617921,84.569,84.521,3.72143122]
[1771004113598,3.9617921,84.559,84.507,3.72143122]
[1771004113797,3.22631515,84.55,84.507,3.72143122]
[1771004113998,3.22631515,84.54,84.497,10.6592]
[1771004114501,10.6527,84.549,84.453,10.95350068]
[1771004114502,3.22631515,84.51,84.453,10.95350068]
[1771004114700,3.22631515,84.5,84.45,3.22631515]
[1771004115201,3.22631515,84.5,84.446,3.72143122]
[1771004115507,3.9617921,84.513,84.448,10.6654]
[1771004115508,3.22631515,84.49,84.448,10.6654]
[1771004117002,10.659,84.499,84.448,10.6654]
[1771004117202,3.22631515,84.49,84.448,10.6654]
[1771004117901,3.9617921,84.489,84.43,6.94774637]
[1771004118104,3.22631515,84.48,84.43,3.72143122]
[1771004118500,3.22631515,84.48,84.432,3.72143122]
[1771004119207,3.9617921,84.489,84.441,3.72143122]
[1771004120106,3.22631515,84.47,84.424,3.72143122]
[1771004120703,3.22631515,84.47,84.426,3.72143122]
[1771004121210,3.22631515,84.47,84.43,3.72143122]
[1771004121407,3.22631515,84.47,84.431,3.72143122]
[1771004121605,3.22631515,84.46,84.431,3.72143122]
[1771004121798,3.22631515,84.46,84.411,3.72143122]
[1771004122005,3.22631515,84.47,84.411,3.72143122]
[1771004122312,3.22631515,84.46,84.411,3.72143122]
[1771004122810,3.9617921,84.449,84.397,3.72143122]
[1771004123921,3.9617921,84.459,84.4,3.72143122]
[1771004125722,3.9617921,84.448,84.381,3.72143122]
[1771004127727,3.9617921,84.448,84.398,10.6716]
[1771004128125,3.9617921,84.448,84.399,3.72143122]
[1771004128725,3.9617921,84.448,84.4,10.6713]
[1771004129225,8.66550783,84.46,84.411,3.72143122]
[1771004129422,14.6249921,84.466,84.411,3.72143122]
[1771004129726,3.9617921,84.466,84.411,3.72143122]
[1771004130329,3.9617921,84.483,84.42,3.72143122]
[1771004130526,3.9617921,84.499,84.42,3.72143122]
[1771004131027,4.08300441,84.496,84.439,10.6665]
[1771004131321,4.08300441,84.496,84.435,3.94740976]
[1771004131522,4.08300441,84.473,84.411,10.67]
[1771004132122,10.6627,84.47,84.416,10.6693]
[1771004132327,14.74570441,84.47,84.416,10.6693]
[1771004132727,4.08300441,84.469,84.416,10.6693]
[1771004133023,10.6629,84.468,84.416,10.6693]
[1771004133328,4.08300441,84.467,84.42,14.61630976]
[1771004134235,4.08300441,84.467,84.42,3.94740976]
[1771004135030,4.08300441,84.463,84.411,10.67]
[1771004135230,4.08300441,84.463,84.403,3.94740976]
[1771004135424,4.08300441,84.479,84.403,3.94740976]
[1771004135620,4.08300441,84.476,84.418,10.6691]
[1771004136029,4.08300441,84.476,84.419,3.94740976]
[1771004137325,4.08300441,84.476,84.424,10.6684]
[1771004138730,14.71401708,84.475,84.424,10.6684]
[1771004138930,4.05201708,84.474,84.424,10.6684]
[1771004139133,4.05201708,84.474,84.419,3.94740976]
[1771004139330,4.05201708,84.463,84.381,3.76266499]
[1771004140028,12.71752491,84.46,84.395,3.76266499]
[1771004140233,4.05201708,84.459,84.395,3.76266499]
[1771004141829,4.05201708,84.451,84.397,10.6718]
[1771004142734,4.05201708,84.451,84.405,10.6708]
[1771004142927,3.2345424,84.45,84.405,10.6708]
[1771004144434,10.6655,84.448,84.398,10.6717]
[1771004144835,7.28655948,84.45,84.395,3.76266499]
[1771004145037,3.2345424,84.43,84.388,10.6729]
[1771004145935,3.2345424,84.43,84.393,10.6723]
[1771004146237,4.05201708,84.448,84.391,3.76266499]
[1771004146436,3.2345424,84.43,84.391,3.76266499]
[1771004146635,3.2345424,84.43,84.392,10.6724]
[1771004148530,4.05201708,84.439,84.392,10.6724]
[1771004149440,4.05201708,84.439,84.392,14.43506499]
[1771004149735,13.8997424,84.45,84.4,3.2345424]
[1771004150040,10.6652,84.45,84.401,3.76266499]
[1771004150738,10.6652,84.45,84.402,10.6711]
[1771004151038,10.6652,84.45,84.403,3.76266499]
[1771004151234,4.05201708,84.454,84.403,3.76266499]
[1771004151432,4.05201708,84.468,84.412,3.76266499]
[1771004151629,3.2345424,84.46,84.412,3.76266499]
[1771004151938,10.664,84.459,84.414,10.6696]
[1771004152239,10.664,84.459,84.415,3.76266499]
[1771004153742,10.664,84.459,84.418,10.6691]
[1771004154137,10.664,84.459,84.375,251.73644161]
[1771004154138,3.2345424,84.48,84.421,3.76266499]
[1771004154343,3.2345424,84.48,84.376,166.0478]
[1771004154344,4.05201708,84.543,84.471,3.76266499]
[1771004154641,4.05201708,84.539,84.5,3.2345424]
[1771004154935,7.28655948,84.56,84.51,3.2345424]
[1771004155140,4.05201708,84.559,84.502,3.76266499]
[1771004155537,4.05201708,84.559,84.51,3.2345424]
[1771004155738,4.05201708,84.559,84.51,6.99720739]
[1771004156036,4.05201708,84.559,84.511,10.6574]
[1771004156239,4.05201708,84.559,84.51,6.99720739]
[1771004156829,4.05201708,84.575,84.511,3.76266499]
[1771004157735,4.05201708,84.573,84.512,3.76266499]
[1771004157940,4.05201708,84.589,84.512,3.76266499]
[1771004158340,4.05201708,84.588,84.512,3.76266499]
[1771004158842,4.05201708,84.583,84.522,10.656]
[1771004159142,4.05201708,84.583,84.512,3.76266499]
[1771004159743,4.05201708,84.599,84.525,3.76266499]
[1771004159934,4.05201708,84.598,84.525,3.76266499]
[1771004160342,4.05201708,84.583,84.527,3.76266499]
[1771004161042,3.98880454,84.578,84.514,10.657]
[1771004161245,3.98880454,84.578,84.515,3.89058932]
[1771004161643,3.98880454,84.578,84.519,3.89058932]
[1771004162442,3.98880454,84.578,84.523,3.89058932]
[1771004162847,10.6474,84.592,84.528,3.89058932]
[1771004163045,3.98880454,84.591,84.528,3.89058932]
[1771004163344,3.98880454,84.576,84.512,3.89058932]
[1771004163644,3.98880454,84.593,84.512,3.89058932]
[1771004163947,3.98880454,84.593,84.535,3.89058932]
[1771004164544,3.98880454,84.59,84.52,8.63995657]
[1771004164746,3.98880454,84.59,84.521,3.89058932]
[1771004165247,3.98880454,84.579,84.521,3.89058932]
[1771004165845,3.98880454,84.577,84.521,3.89058932]
[1771004166448,3.98880454,84.571,84.514,10.657]
[1771004167341,3.98880454,84.568,84.505,3.89058932]
[1771004168445,10.6508,84.564,84.507,10.6578]
[1771004168642,14.63960454,84.564,84.508,3.89058932]
[1771004168949,3.98880454,84.579,84.508,3.89058932]
[1771004169250,3.98880454,84.573,84.522,10.6561]
[1771004169548,3.98880454,84.573,84.524,10.6558]
[1771004169844,3.98880454,84.573,84.523,3.89058932]
[1771004170050,3.98880454,84.573,84.512,3.89058932]
[1771004170249,10.6508,84.564,84.513,10.6572]
[1771004170950,10.6514,84.559,84.512,3.89058932]
[1771004171850,3.98880454,84.563,84.512,3.89058932]
[1771004172052,3.98880454,84.55,84.496,14.54988932]
[1771004172243,3.98880454,84.55,84.497,3.89058932]
[1771004172443,3.98880454,84.545,84.497,3.89058932]
[1771004173147,10.6534,84.544,84.497,3.89058932]
[1771004173342,10.6534,84.544,84.498,10.659]
[1771004173543,3.98880454,84.545,84.498,3.89058932]
[1771004174450,3.98880454,84.545,84.508,10.6578]
[1771004174749,3.98880454,84.545,84.498,3.89058932]
[1771004175045,3.98880454,84.545,84.5,10.6588]
[1771004175348,3.98880454,84.571,84.501,3.89058932]
[1771004175746,3.98880454,84.561,84.509,3.89058932]
[1771004175946,3.98880454,84.561,84.494,3.89058932]
[1771004176752,10.6532,84.545,84.499,10.6589]
[1771004177354,14.64200454,84.545,84.499,10.6589]
[1771004177553,10.654,84.538,84.494,3.89058932]
[1771004177850,3.98880454,84.544,84.494,3.89058932]
[1771004178055,3.98880454,84.544,84.471,3.89058932]
[1771004178352,3.98880454,84.527,84.477,10.6616]
[1771004178555,3.98880454,84.527,84.477,3.89058932]
[1771004178747,14.64420454,84.527,84.486,10.6606]
[1771004178951,3.98880454,84.527,84.477,3.89058932]
[1771004179351,14.64430454,84.527,84.484,10.6607]
[1771004184462,14.68103739,84.522,84.477,14.55228932]
[1771004184957,4.02483739,84.519,84.47,10.6626]
[1771004185157,4.02483739,84.509,84.45,3.74710847]
[1771004186256,14.68283739,84.507,84.45,3.74710847]
[1771004186559,4.02483739,84.506,84.45,3.74710847]
[1771004186855,4.02483739,84.506,84.463,10.6635]
[1771004187758,8.6369726,84.51,84.471,10.6625]
[1771004187962,4.02483739,84.521,84.472,3.74710847]
[1771004188758,10.6564,84.52,84.474,14.40920847]
[1771004188960,10.6564,84.52,84.475,3.74710847]
[1771004189563,10.6572,84.514,84.475,3.74710847]
[1771004189961,4.02483739,84.513,84.47,10.6626]
[1771004190165,4.02483739,84.509,84.421,3.74710847]
[1771004190868,3.89440057,84.499,84.421,3.74710847]
[1771004191663,3.89440057,84.496,84.453,10.6647]
[1771004192260,3.89440057,84.481,84.436,10.6668]
[1771004192765,10.6625,84.472,84.429,10.6677]
[1771004192967,8.6369726,84.48,84.419,3.97810658]
[1771004193666,10.6605,84.487,84.444,10.6659]
[1771004194061,3.89440057,84.515,84.445,3.97810658]
[1771004194363,10.6594,84.496,84.455,10.6645]
[1771004194563,10.6594,84.496,84.455,14.64260658]
[1771004195265,10.6577,84.509,84.465,10.6632]
[1771004195676,12.53137317,84.53,84.466,3.97810658]
[1771004195963,10.6573,84.513,84.475,10.6619]
[1771004197063,10.6573,84.513,84.474,10.662]
[1771004197862,94.48,84.527,84.475,4.08063134]
[1771004198065,4.04797743,84.561,84.475,4.08063134]
[1771004199565,14.70017743,84.553,84.495,4.08063134]
[1771004199758,4.04797743,84.569,84.495,4.08063134]
[1771004200771,10.6509,84.563,84.516,10.6567]
[1771004201569,8.6369726,84.58,84.517,4.08063134]
[1771004201768,4.04797743,84.584,84.522,4.08063134]
[1771004202268,4.04797743,84.572,84.517,10.6566]
[1771004202464,4.04797743,84.572,84.507,4.08063134]
[1771004202764,8.6369726,84.56,84.471,4.08063134]
[1771004202970,4.04797743,84.554,84.494,4.08063134]
[1771004203574,10.6523,84.553,84.507,10.6579]
[1771004203871,4.04797743,84.552,84.494,4.08063134]
[1771004204773,10.6525,84.551,84.498,10.659]
[1771004205173,4.04797743,84.55,84.494,4.08063134]
[1771004205378,4.04797743,84.544,84.494,4.08063134]
[1771004205872,4.04797743,84.561,84.494,4.08063134]
[1771004206173,14.69917743,84.561,84.514,10.657]
[1771004208472,10.6521,84.554,84.508,4.08063134]
[1771004208774,4.04797743,84.553,84.493,4.08063134]
[1771004209173,8.6369726,84.53,84.451,4.08063134]
[1771004209472,94.46,84.529,84.451,4.08063134]
[1771004210484,10.6574,84.512,84.461,10.6637]
[1771004210684,94.46,84.529,84.451,4.08063134]
[1771004210880,4.04797743,84.528,84.451,4.08063134]
[1771004211185,10.6572,84.514,84.46,10.6639]
[1771004212786,10.6577,84.509,84.46,10.6639]
[1771004213081,4.04797743,84.508,84.451,4.08063134]
[1771004213287,4.04797743,84.508,84.45,10.665]
[1771004213793,4.04797743,84.497,84.441,10.6662]
[1771004214589,10.6606,84.487,84.441,10.6662]
[1771004215293,4.04797743,84.478,84.431,10.6675]
[1771004215682,4.04797743,84.478,84.419,4.08063134]
[1771004216789,4.04797743,84.475,84.423,10.6685]
[1771004217488,4.04797743,84.471,84.423,10.6685]
[1771004217690,4.04797743,84.469,84.423,10.6685]
[1771004219490,4.04797743,84.469,84.423,14.74913134]
[1771004219691,10.661,84.483,84.433,4.08063134]
[1771004220889,10.661,84.483,84.437,10.6667]
[1771004221085,10.6598,84.493,84.438,4.05251093]
[1771004222592,10.6609,84.484,84.44,10.6663]
[1771004222889,10.6609,84.484,84.438,4.05251093]
[1771004224490,14.63614895,84.484,84.438,4.05251093]
[1771004224687,3.97524895,84.483,84.438,4.05251093]
[1771004224884,3.97524895,84.48,84.402,4.05251093]
[1771004225286,3.97524895,84.469,84.402,4.05251093]
[1771004225482,10.6638,84.461,84.402,4.05251093]
[1771004225687,3.97524895,84.46,84.402,4.05251093]
[1771004225985,3.97524895,84.46,84.419,10.6691]
[1771004228099,8.66293088,84.47,84.427,10.668]
[1771004228483,10.6622,84.474,84.417,4.05251093]
[1771004228683,10.6621,84.474,84.433,10.6672]
[1771004229396,10.6621,84.474,84.426,10.6682]
[1771004229696,3.97524895,84.475,84.427,4.05251093]
[1771004229993,8.66293088,84.49,84.427,4.05251093]
[1771004230596,10.6604,84.488,84.446,10.6656]
[1771004230794,14.63564895,84.488,84.446,10.6656]
[1771004231095,14.63564895,84.488,84.427,4.05251093]
[1771004231497,3.97524895,84.485,84.439,10.6665]
[1771004232196,3.97524895,84.485,84.445,10.6657]
[1771004233795,3.97524895,84.485,84.451,10.6649]
[1771004234887,10.6595,84.495,84.451,10.6649]
[1771004235998,10.6603,84.489,84.451,10.6649]
[1771004238300,10.6603,84.489,84.444,10.6659]
[1771004238898,10.6603,84.489,84.45,10.6651]
[1771004239499,10.6593,84.496,84.45,10.6651]
[1771004239700,8.66293088,84.51,84.464,4.05251093]
[1771004239993,12.63817983,84.51,84.464,4.05251093]
[1771004240196,3.97524895,84.499,84.444,4.05251093]
[1771004240396,3.97524895,84.489,84.401,4.05251093]
[1771004240998,10.6638,84.461,84.418,4.05251093]
[1771004241597,10.6646,84.455,84.418,4.05251093]
[1771004241794,3.97524895,84.469,84.418,4.05251093]
[1771004242489,10.6636,84.462,84.42,4.05251093]
[1771004243200,10.6628,84.469,84.42,4.05251093]
[1771004243899,10.6619,84.476,84.429,10.6677]
[1771004244101,10.6619,84.476,84.42,4.05251093]
[1771004244501,10.6631,84.467,84.422,10.6687]
[1771004247502,10.6631,84.467,84.428,10.6678]
[1771004248911,3.23350334,84.46,84.428,10.6678]
[1771004249205,3.23350334,84.46,84.42,14.72131093]
[1771004249401,3.23350334,84.46,84.42,4.05251093]
[1771004250710,3.23350334,84.46,84.426,10.6681]
[1771004252609,10.6629,84.468,84.426,10.6681]
[1771004252812,3.23350334,84.46,84.426,10.6681]
[1771004253012,3.91255796,84.459,84.415,3.80159406]
[1771004253205,3.23350334,84.46,84.415,3.80159406]
[1771004253712,10.6644,84.456,84.415,3.80159406]
[1771004254913,3.23350334,84.46,84.417,10.6693]
[1771004256715,10.6642,84.458,84.417,10.6693]
[1771004256915,3.23350334,84.45,84.417,10.6693]
[1771004257815,3.23350334,84.45,84.428,10.6678]
[1771004258023,3.23350334,84.48,84.421,4.00444009]
[1771004258624,3.23350334,84.48,84.431,4.00444009]
[1771004258913,3.23350334,84.49,84.441,4.00444009]
[1771004259321,4.07101406,84.492,84.441,4.00444009]
[1771004259819,10.6591,84.499,84.457,4.00444009]
[1771004260121,4.07101406,84.508,84.457,4.00444009]
[1771004260315,3.23350334,84.51,84.457,4.00444009]
[1771004260520,4.07101406,84.499,84.445,4.00444009]
[1771004260716,3.23350334,84.48,84.445,4.00444009]
[1771004261622,3.23350334,84.48,84.429,4.00444009]
[1771004261623,3.23350334,84.47,84.429,4.00444009]
[1771004262220,10.6616,84.479,84.438,10.6666]
[1771004262610,4.07101406,84.478,84.429,4.00444009]
[1771004262811,3.23350334,84.47,84.429,14.67214009]
[1771004263015,4.07101406,84.476,84.429,14.67214009]
[1771004263215,8.65952545,84.49,84.429,4.00444009]
[1771004263419,12.73053951,84.49,84.429,4.00444009]
[1771004263718,4.07101406,84.489,84.445,10.6658]
[1771004264427,10.6605,84.487,84.445,10.6658]
[1771004264827,14.73151406,84.487,84.445,10.6658]
[1771004265127,10.6612,84.481,84.434,10.6671]
[1771004265526,10.6612,84.481,84.438,10.6666]
[1771004268127,4.07101406,84.486,84.447,10.6654]
[1771004268328,4.07101406,84.486,84.435,4.00444009]
[1771004268827,4.07101406,84.486,84.408,4.00444009]
[1771004269825,4.07101406,84.477,84.432,10.6673]
[1771004271232,14.73351406,84.472,84.432,10.6673]
[1771004271530,4.07101406,84.472,84.424,10.6684]
[1771004271930,96.28,84.488,84.421,4.00444009]
[1771004271931,4.07101406,84.47,84.431,10.6675]
[1771004272827,10.6631,84.466,84.422,10.6687]
[1771004273032,4.07101406,84.465,84.422,10.6687]
[1771004273334,4.07101406,84.465,84.429,10.6677]
[1771004273535,4.07101406,84.487,84.421,4.00444009]
[1771004273739,4.07101406,84.485,84.421,4.00444009]
[1771004273935,4.07101406,84.467,84.423,10.6685]
[1771004274742,10.664,84.459,84.416,10.6694]
[1771004276142,10.664,84.459,84.417,4.00444009]
[1771004276344,10.664,84.459,84.418,10.6691]
[1771004276544,10.664,84.459,84.419,4.00444009]
[1771004277642,10.6632,84.466,84.419,4.00444009]
[1771004277941,4.07101406,84.467,84.419,4.00444009]
[1771004278444,10.6639,84.46,84.42,14.67334009]
[1771004278631,4.07101406,84.467,84.42,4.00444009]
[1771004279338,10.6647,84.454,84.42,4.00444009]
[1771004279538,10.6647,84.454,84.413,10.6698]
[1771004279539,4.07101406,84.467,84.413,10.6698]
[1771004280031,8.65952545,84.47,84.406,14.67504009]
[1771004280032,4.07101406,84.447,84.406,14.67504009]
[1771004280233,4.07101406,84.447,84.391,4.00444009]
[1771004282038,8.65952545,84.47,84.391,4.00444009]
[1771004282039,4.03827455,84.467,84.391,4.00444009]
[1771004282741,4.03827455,84.467,84.411,10.67]
[1771004282941,3.23469109,84.44,84.404,3.88543437]
[1771004283142,4.03827455,84.454,84.404,3.88543437]
[1771004283541,94.52,84.468,84.391,3.88543437]
[1771004283542,4.03827455,84.449,84.391,3.88543437]
[1771004284242,10.6666,84.439,84.394,10.6721]
[1771004284439,4.03827455,84.438,84.394,10.6721]
[1771004284740,4.03827455,84.438,84.394,14.55753437]
[1771004284948,4.03827455,84.436,84.397,10.6718]
[1771004285142,4.03827455,84.436,84.395,3.88543437]
[1771004285543,4.03827455,84.428,84.381,3.88543437]
[1771004285748,4.03827455,84.428,84.367,3.88543437]
[1771004285943,7.27296564,84.42,84.37,3.23469109]
[1771004286140,3.23469109,84.43,84.371,3.88543437]
[1771004286343,4.03827455,84.435,84.381,3.88543437]
[1771004286540,10.6661,84.443,84.398,10.6716]
[1771004286746,4.03827455,84.45,84.41,3.23469109]
[1771004287751,14.70337455,84.45,84.41,3.23469109]
[1771004288853,14.70337455,84.45,84.41,3.23331549]
[1771004289955,14.70337455,84.45,84.41,7.11874986]
[1771004291352,4.03827455,84.447,84.41,3.23331549]
[1771004292056,4.03827455,84.447,84.406,10.6707]
[1771004292454,4.03827455,84.447,84.4,3.23331549]
[1771004292455,10.6667,84.438,84.4,3.23331549]
[1771004292756,4.03827455,84.473,84.42,3.23331549]
[1771004293150,4.03827455,84.473,84.41,7.11874986]
[1771004293357,4.03827455,84.455,84.41,7.11874986]
[1771004293558,4.03827455,84.449,84.39,3.23331549]
[1771004294347,4.03827455,84.435,84.391,3.88543437]
[1771004294552,4.03827455,84.435,84.4,3.23331549]
[1771004295957,10.666,84.444,84.401,10.6713]
[1771004296760,10.666,84.444,84.401,14.55673437]
[1771004296960,10.666,84.444,84.41,3.23331549]
[1771004297261,10.666,84.444,84.402,3.88543437]
[1771004297561,10.6667,84.438,84.402,3.88543437]
[1771004298754,10.6667,84.438,84.4,3.23331549]
[1771004298755,10.6677,84.43,84.4,3.23331549]
[1771004298960,4.03827455,84.429,84.39,3.23331549]
[1771004299160,4.03827455,84.444,84.401,3.88543437]
[1771004299361,10.6662,84.442,84.41,3.23331549]
[1771004299561,4.03827455,84.444,84.41,3.23331549]
[1771004299958,10.6667,84.438,84.41,3.23331549]
[1771004300163,10.6667,84.438,84.401,3.88543437]
[1771004302759,4.03827455,84.444,84.405,14.55623437]
[1771004302951,10.6655,84.448,84.41,3.23331549]
[1771004303155,4.03827455,84.457,84.42,3.23331549]
[1771004303662,10.6638,84.461,84.42,7.11874986]
[1771004304564,10.6629,84.468,84.43,3.23331549]
[1771004304865,4.03827455,84.499,84.441,3.88543437]
[1771004305063,4.03827455,84.499,84.45,3.23331549]
[1771004306462,4.03827455,84.513,84.46,3.23331549]
[1771004306954,10.6595,84.495,84.451,3.88543437]
[1771004307158,10.6595,84.495,84.416,94.54]
[1771004307159,4.03827455,84.494,84.43,3.23331549]
[1771004307362,4.03827455,84.494,84.431,3.88543437]
[1771004307565,4.03827455,84.494,84.44,3.23331549]
[1771004307760,10.6605,84.487,84.44,7.11874986]
[1771004308166,10.6614,84.48,84.44,7.11874986]
[1771004308568,4.03827455,84.494,84.442,3.88543437]
[1771004308865,10.6597,84.493,84.451,3.88543437]
[1771004309162,4.03827455,84.492,84.44,3.23331549]
[1771004309768,10.6602,84.489,84.44,13.89961549]
[1771004309963,10.6602,84.489,84.44,17.78504986]
[1771004310567,10.6602,84.489,84.443,3.88543437]
[1771004310869,10.6602,84.489,84.45,7.13820148]
[1771004311062,94.52,84.505,84.416,94.54]
[1771004311063,3.83260533,84.483,84.44,3.23331549]
[1771004312168,3.83260533,84.483,84.44,13.89961549]
[1771004312470,10.6601,84.49,84.46,3.23331549]
[1771004313467,10.6601,84.49,84.45,3.90488599]
[1771004313672,3.83260533,84.483,84.391,3.90488599]
[1771004313973,3.83260533,84.483,84.42,3.23331549]
[1771004314165,3.23331549,84.48,84.42,3.23331549]
[1771004314771,10.6639,84.46,84.42,3.23331549]
[1771004315666,10.663,84.467,84.42,3.23331549]
[1771004315972,3.83260533,84.484,84.44,3.23331549]
[1771004316171,3.83260533,84.5,84.45,3.23331549]
[1771004317363,3.73417671,84.516,84.461,3.72376825]
[1771004318771,10.6589,84.5,84.461,3.72376825]
[1771004319166,3.73417671,84.516,84.461,3.72376825]
[1771004319370,3.73417671,84.516,84.46,3.23331549]
[1771004320767,10.6598,84.493,84.46,3.23331549]
[1771004320968,3.73417671,84.492,84.44,3.23331549]
[1771004321575,3.73417671,84.516,84.46,3.23331549]
[1771004322072,10.6607,84.486,84.46,3.23331549]
[1771004323173,10.6615,84.479,84.46,1.549e-05]
[1771004323368,10.6615,84.479,84.45,6.95708374]
[1771004323770,3.73417671,84.487,84.416,3.72376825]
[1771004324071,3.73417671,84.479,84.42,3.23331549]
[1771004324376,165.7687,84.519,84.416,3.72376825]
[1771004324377,10.6644,84.457,84.416,3.72376825]
[1771004324567,3.73417671,84.469,84.416,3.72376825]
[1771004324762,3.23331549,84.46,84.416,3.72376825]
[1771004325875,10.6651,84.451,84.416,3.72376825]
[1771004327377,10.6658,84.445,84.416,3.72376825]
[1771004327570,3.73417671,84.449,84.401,3.72376825]
[1771004327972,3.23331549,84.45,84.401,3.72376825]
[1771004328172,10.6663,84.441,84.403,3.72376825]
[1771004329380,10.6667,84.438,84.403,3.72376825]
[1771004329674,3.23331549,84.44,84.403,3.72376825]
[1771004329866,10.6665,84.439,84.403,3.72376825]
[1771004330072,3.23331549,84.43,84.388,3.72376825]
[1771004330377,13.90111549,84.43,84.388,3.72376825]
[1771004330573,98.25417671,84.461,84.401,3.72376825]
[1771004330772,3.23331549,84.45,84.401,3.72376825]
[1771004330971,3.23331549,84.44,84.403,3.72376825]
[1771004331177,3.23331549,84.43,84.403,3.72376825]
[1771004331577,3.23331549,84.43,84.381,3.72376825]
[1771004332078,3.23331549,84.42,84.387,3.72376825]
[1771004332473,3.23331549,84.41,84.367,3.72376825]
[1771004333479,3.23331549,84.41,84.369,10.6753]
[1771004333780,3.23331549,84.41,84.367,3.72376825]
[1771004333781,3.23331549,84.4,84.367,3.72376825]
[1771004334375,6.9674922,84.41,84.367,3.72376825]
[1771004335381,3.23331549,84.4,84.367,3.72376825]
[1771004337183,3.23331549,84.41,84.367,3.72376825]
[1771004337385,3.73417671,84.426,84.371,3.72376825]
[1771004337683,3.73417671,84.426,84.375,3.72376825]
[1771004337982,3.23331549,84.43,84.381,3.72376825]
[1771004338179,6.9674922,84.44,84.388,3.72376825]
[1771004338478,3.23331549,84.45,84.401,3.72376825]
[1771004338981,3.23331549,84.45,84.405,3.72376825]
[1771004339682,3.23331549,84.45,84.408,10.6704]
[1771004339882,3.23331549,84.45,84.405,3.72376825]
[1771004340783,10.6655,84.448,84.405,3.72376825]
[1771004341280,3.73417671,84.456,84.405,3.72376825]
[1771004341483,3.99242168,84.469,84.405,3.72376825]
[1771004341986,3.99242168,84.484,84.419,3.74379219]
[1771004342377,3.99242168,84.469,84.419,3.74379219]
[1771004343279,3.99242168,84.469,84.397,94.54]